Workbook

Sheet Feuil1
A1: test
A2: 1.00E+00 | B2: =A2+2 -> 3.00E+00 | C2: =B2+2 -> 5.00E+00 | D2: 7.00E+00 | E2: 9.00 | F2: 11.00 | G2: 1.00 | H2: =G2+2 -> 3.00 | I2: =H2+2 -> 5.00 | J2: 7.00
A3: 2.00E+00 | B3: =A3+2 -> 4.00E+00 | C3: 6.00E+00 | D3: 8.00E+00 | E3: 10.00 | F3: 12.00 | G3: 2.0000 | H3: =G3+2 -> 4.0000 | I3: 6.0000 | J3: 8.00
A4: 3.00E+00 | B4: =A4+2 -> 5.00E+00 | C4: 7.00E+00 | D4: 9.00E+00 | E4: 11.00 | F4: 13.00 | G4: 3.0000 | H4: =G4+2 -> 5.0000 | I4: 7.0000 | J4: 9.00
A5: 4.00E+00 | B5: =A5+2 -> 6.00E+00 | C5: 8.00E+00 | D5: 1.00E+01 | E5: 12.00 | F5: 14.00 | G5: 4.0000 | H5: =G5+2 -> 6.0000 | I5: 8.0000 | J5: 10.00
A6: 5.00E+00 | B6: =A6+2 -> 7.00E+00 | C6: 9.00E+00 | D6: 1.10E+01 | E6: 13.00 | F6: 15.00 | G6: 5.00 | H6: =G6+2 -> 7.00 | I6: 9.00 | J6: 11.00
A7: 6.00E+00 | B7: =A7+2 -> 8.00E+00 | C7: 1.00E+01 | D7: 1.20E+01 | E7: 14.00 | F7: 16.00 | G7: 6.00 | H7: =G7+2 -> 8.00 | I7: 10.00 | J7: 12.00
A8: 7.00E+00 | B8: =A8+2 -> 9.00E+00 | C8: 1.10E+01 | D8: 1.30E+01 | E8: 15.00 | F8: 17.00 | G8: 7.00 | H8: =G8+2 -> 9.00 | I8: 11.00 | J8: 13.00
A9: 8.00E+00 | B9: =A9+2 -> 1.00E+01 | C9: 1.20E+01 | D9: 1.40E+01 | E9: 16.00 | F9: 18.00 | G9: 8.00 | H9: =G9+2 -> 10.00 | I9: 12.00 | J9: 14.00
A10: 9.00E+00 | B10: =A10+2 -> 1.10E+01 | C10: 1.30E+01 | D10: 1.50E+01 | E10: 17.00 | F10: 19.00 | G10: 9.00 | H10: =G10+2 -> 11.00 | I10: 13.00 | J10: 15.00
A11: 10.00 | B11: =A11+2 -> 12.00 | C11: 14.00 | D11: 16.00 | E11: 18.00 | F11: 20.00 | G11: 10.00 | H11: =G11+2 -> 12.00 | I11: 14.00 | J11: 16.00
A12: 11.00 | B12: =A12+2 -> 13.00 | C12: 15.00 | D12: 17.00 | E12: 19.00 | F12: € 21.00 | G12: € 11.00 | H12: =G12+2 -> € 13.00 | I12: 15.00 | J12: 17.00
A13: 12.00 | B13: =A13+2 -> 14.00 | C13: 16.00 | D13: 18.00 | E13: 20.00 | F13: € 22.00 | G13: € 12.00 | H13: =G13+2 -> € 14.00 | I13: 16.00 | J13: 18.00
A14: 13.00 | B14: =A14+2 -> 15.00 | C14: 17.00 | D14: 19.00 | E14: 21.00 | F14: € 23.00 | G14: € 13.00 | H14: =G14+2 -> € 15.00 | I14: 17.00 | J14: 19.00
A15: 14.00 | B15: =A15+2 -> 16.0 | C15: 18.0 | D15: 20.0 | E15: 22.0 | F15: 24.0 | G15: € 14.00 | H15: =G15+2 -> € 16.00 | I15: 18.00 | J15: 20.00
A16: 15.00 | B16: =A16+2 -> 17.0 | C16: 19.0 | D16: 21.0 | E16: 23.0 | F16: 25.0 | G16: € 15.00 | H16: =G16+2 -> € 17.00 | I16: 19.00 | J16: 21.00
A17: 16.00 | B17: =A17+2 -> 18.0 | C17: 20.0 | D17: 22.0 | E17: 24.0 | F17: 26.0 | G17: € 16.00 | H17: =G17+2 -> € 18.00 | I17: 20.00 | J17: 22.00
A18: 17.00 | B18: =A18+2 -> 19.0 | C18: 21.0 | D18: 23.0 | E18: 25.0 | F18: 27.0 | G18: € 17.00 | H18: =G18+2 -> € 19.00 | I18: 21.00 | J18: 23.00
A19: 18.00 | B19: =A19+2 -> 20.0 | C19: 22.0 | D19: 24.0 | E19: 26.0 | F19: 28.0 | G19: € 18.00 | H19: =G19+2 -> € 20.00 | I19: 22.00 | J19: 24.00
A20: 19.00 | B20: =A20+2 -> 21.0 | C20: 23.0 | D20: 25.0 | E20: 27.0 | F20: 29.0 | G20: € 19.00 | H20: =G20+2 -> € 21.00 | I20: 23.00 | J20: 25.00
A21: 20.00 | B21: =A21+2 -> 22.00 | C21: 24.00 | D21: 26.00 | E21: 28.00 | F21: € 30.00 | G21: € 20.00 | H21: =G21+2 -> € 22.00 | I21: 24.00 | J21: 26.00
A22: 21.00 | B22: =A22+2 -> 23.00 | C22: 25.00 | D22: 27.00 | E22: 29.00 | F22: 31.00 | G22: 21.00 | H22: =G22+2 -> 23.00 | I22: 25.00 | J22: 27.00
A23: 22.00 | B23: =A23+2 -> 24.00 | C23: 26.00 | D23: 28.00 | E23: 30.00 | F23: 32.00 | G23: 22.00 | H23: =G23+2 -> 24.00 | I23: 26.00 | J23: 28.00
A24: 23.00 | B24: =A24+2 -> 25 | C24: 27 | D24: 29 | E24: 31 | F24: 33 | G24: 23 | H24: =G24+2 -> 25.00 | I24: 27.00 | J24: 29.00
A25: 24.00 | B25: =A25+2 -> 26 | C25: 28 | D25: 30 | E25: 32 | F25: 34 | G25: 24 | H25: =G25+2 -> 26.00 | I25: 28.00 | J25: 30.00
A26: 25.00 | B26: =A26+2 -> 27 | C26: 29 | D26: 31 | E26: 33 | F26: 35 | G26: 25 | H26: =G26+2 -> 27.00 | I26: 29.00 | J26: 31.00
A27: 26.00 | B27: =A27+2 -> 28 | C27: 30 | D27: 32 | E27: 34 | F27: 36 | G27: 26 | H27: =G27+2 -> 28.00 | I27: 30.00 | J27: 32.00
A28: 27.00 | B28: =A28+2 -> 29 | C28: 31 | D28: 33 | E28: 35 | F28: 37 | G28: 27 | H28: =G28+2 -> 29.00 | I28: 1900-01-31 | J28: 1900-02-02
A29: 28.00 | B29: =A29+2 -> 30 | C29: 32 | D29: 34 | E29: 36 | F29: 38 | G29: 28 | H29: =G29+2 -> 30.00 | I29: 1900-02-01 | J29: 1900-02-03
A30: 29.00 | B30: =A30+2 -> 31 | C30: 33 | D30: 35 | E30: 37 | F30: 39 | G30: 29 | H30: =G30+2 -> 31.00 | I30: 1900-02-02 | J30: 1900-02-04
A31: 30.00 | B31: =A31+2 -> 32 | C31: 34 | D31: 36 | E31: 38 | F31: 40 | G31: 30 | H31: =G31+2 -> 32.00 | I31: 1900-02-03 | J31: 1900-02-05
A32: 31.00 | B32: =A32+2 -> 33 | C32: 35 | D32: 37 | E32: 39 | F32: 41 | G32: 31 | H32: =G32+2 -> 33.00 | I32: 1900-02-04 | J32: 1900-02-06
A33: 32.00 | B33: =A33+2 -> 34 | C33: 36 | D33: 38 | E33: 40 | F33: 42 | G33: 32 | H33: =G33+2 -> 34.00 | I33: 1900-02-05 | J33: 1900-02-07
A34: 33.00 | B34: =A34+2 -> 35 | C34: 37 | D34: 39 | E34: 41 | F34: 43 | G34: 33 | H34: =G34+2 -> 35.00 | I34: 37.00 | J34: 39.00
A35: 34.00 | B35: =A35+2 -> 36.00 | C35: 38.00 | D35: 40.00 | E35: 42.00 | F35: 44.00 | G35: 34.00 | H35: =G35+2 -> 36.00 | I35: 38.00 | J35: 40.00
A36: 35.00 | B36: =A36+2 -> 37.00 | C36: 39.00 | D36: 41.00 | E36: 43.00 | F36: 45.00 | G36: 35.00 | H36: =G36+2 -> 37.00 | I36: 39.00 | J36: 41.00
A37: 36.00 | B37: =A37+2 -> 38.00 | C37: 40.00 | D37: 42.00 | E37: 44.00 | F37: 46.00 | G37: 36.00 | H37: =G37+2 -> 38.00 | I37: 40.00 | J37: 42.00
A38: 37.00 | B38: =A38+2 -> 39.00 | C38: 41.00 | D38: 43.00 | E38: 45.00 | F38: 47.00 | G38: 37.00 | H38: =G38+2 -> 39.00 | I38: 41.00 | J38: 43.00
A39: 38.00 | B39: =A39+2 -> 40.00 | C39: 42.00 | D39: 44.00 | E39: 46.00 | F39: 48.00 | G39: 38.00 | H39: =G39+2 -> 40.00 | I39: 42.00 | J39: 44.00
A40: 39.00 | B40: =A40+2 -> 41.00 | C40: 43.00 | D40: 45.00 | E40: 47.00 | F40: 49.00 | G40: 39.00 | H40: =G40+2 -> 41.00 | I40: 43.00 | J40: 45.00
A41: 40.00 | B41: =A41+2 -> 42.00 | C41: 44.00 | D41: 46.00 | E41: 48.00 | F41: 50.00 | G41: 40.00 | H41: =G41+2 -> 42.00 | I41: 44.00 | J41: 46.00
A42: 41.00 | B42: =A42+2 -> 43.00 | C42: 45.00 | D42: 47.00 | E42: 49.00 | F42: 51.00 | G42: 41.00 | H42: =G42+2 -> 43.00 | I42: 45.00 | J42: 47.00
A43: 42.00 | B43: =A43+2 -> 44.00 | C43: 46.00 | D43: 48.00 | E43: 50.00 | F43: 52.00 | G43: 42.00 | H43: =G43+2 -> 44.00 | I43: 46.00 | J43: 48.00
A44: 43.00 | B44: =A44+2 -> 45.00 | C44: 47.00 | D44: 49.00 | E44: 51.00 | F44: 53.00 | G44: 43.00 | H44: =G44+2 -> 45.00 | I44: 47.00 | J44: 49.00
A45: 44.00 | B45: =A45+2 -> 46.00 | C45: 48.00 | D45: 50.00 | E45: 52.00 | F45: 54.00 | G45: 44.00 | H45: =G45+2 -> 46.00 | I45: 48.00 | J45: 50.00
A46: 45.00 | B46: =A46+2 -> 47.00 | C46: 49.00 | D46: 51.00 | E46: 53.00 | F46: 55.00 | G46: 45.00 | H46: =G46+2 -> 47.00 | I46: 49.00 | J46: 51.00
A47: 46.00 | B47: =A47+2 -> 48.00 | C47: 50.00 | D47: 52.00 | E47: 54.00 | F47: 56.00 | G47: 46.00 | H47: =G47+2 -> 48.00 | I47: 50.00 | J47: 52.00
A48: 47.00 | B48: =A48+2 -> 49.00 | C48: 51.00 | D48: 53.00 | E48: 55.00 | F48: 57.00 | G48: 47.00 | H48: =G48+2 -> 49.00 | I48: 51.00 | J48: 53.00
A49: 48.00 | B49: =A49+2 -> 50.00 | C49: 52.00 | D49: 54.00 | E49: 56.00 | F49: 58.00 | G49: 48.00 | H49: =G49+2 -> 50.00 | I49: 52.00 | J49: 54.00
A50: 49.00 | B50: =A50+2 -> 51.00 | C50: 53.00 | D50: 55.00 | E50: 57.00 | F50: 59.00 | G50: 49.00 | H50: =G50+2 -> 51.00 | I50: 53.00 | J50: 55.00
A51: 50.00 | B51: =A51+2 -> 52.00 | C51: 54.00 | D51: 56.00 | E51: 58.00 | F51: 60.00 | G51: 50.00 | H51: =G51+2 -> 52.00 | I51: 54.00 | J51: 56.00
A52: 51.00 | B52: =A52+2 -> 53.00 | C52: 55.00 | D52: 57.00 | E52: 59.00 | F52: 61.00 | G52: 51.00 | H52: =G52+2 -> 53.00 | I52: 55.00 | J52: 57.00
A53: 52.00 | B53: =A53+2 -> 54.00 | C53: 56.00 | D53: 58.00 | E53: 60.00 | F53: 62.00 | G53: 52.00 | H53: =G53+2 -> 54.00 | I53: 56.00 | J53: 58.00
A54: 53.00 | B54: =A54+2 -> 55.00 | C54: 57.00 | D54: 59.00 | E54: 61.00 | F54: 63.00 | G54: 53.00 | H54: =G54+2 -> 55.00 | I54: 57.00 | J54: 59.00
A55: 54.00 | B55: =A55+2 -> 56.00 | C55: 58.00 | D55: 60.00 | E55: 62.00 | F55: 64.00 | G55: 54.00 | H55: =G55+2 -> 56.00 | I55: 58.00 | J55: 60.00
A56: 55.00 | B56: =A56+2 -> 57.00 | C56: 59.00 | D56: 61.00 | E56: 63.00 | F56: 65.00 | G56: 55.00 | H56: =G56+2 -> 57.00 | I56: 59.00 | J56: 61.00
A57: 56.00 | B57: =A57+2 -> 58.00 | C57: 60.00 | D57: 62.00 | E57: 64.00 | F57: 66.00 | G57: 56.00 | H57: =G57+2 -> 58.00 | I57: 60.00 | J57: 62.00
A58: 57.00 | B58: =A58+2 -> 59.00 | C58: 61.00 | D58: 63.00 | E58: 65.00 | F58: 67.00 | G58: 57.00 | H58: =G58+2 -> 59.00 | I58: 61.00 | J58: 63.00
A59: 58.00 | B59: =A59+2 -> 60.00 | C59: 62.00 | D59: 64.00 | E59: 66.00 | F59: 68.00 | G59: 58.00 | H59: =G59+2 -> 60.00 | I59: 62.00 | J59: 64.00
A60: 59.00 | B60: =A60+2 -> 61.00 | C60: 63.00 | D60: 65.00 | E60: 67.00 | F60: 69.00 | G60: 59.00 | H60: =G60+2 -> 61.00 | I60: 63.00 | J60: 65.00
A61: 60.00 | B61: =A61+2 -> 62.00 | C61: 64.00 | D61: 66.00 | E61: 68.00 | F61: 70.00 | G61: 60.00 | H61: =G61+2 -> 62.00 | I61: 64.00 | J61: 66.00
A62: 61.00 | B62: =A62+2 -> 63.00 | C62: 65.00 | D62: 67.00 | E62: 69.00 | F62: 71.00 | G62: 61.00 | H62: =G62+2 -> 63.00 | I62: 65.00 | J62: 67.00
A63: 62.00 | B63: =A63+2 -> 64.00 | C63: 66.00 | D63: 68.00 | E63: 70.00 | F63: 72.00 | G63: 62.00 | H63: =G63+2 -> 64.00 | I63: 66.00 | J63: 68.00
A64: 63.00 | B64: =A64+2 -> 65.00 | C64: 67.00 | D64: 69.00 | E64: 71.00 | F64: 73.00 | G64: 63.00 | H64: =G64+2 -> 65.00 | I64: 67.00 | J64: 69.00
A65: 64.00 | B65: =A65+2 -> 66.00 | C65: 68.00 | D65: 70.00 | E65: 72.00 | F65: 74.00 | G65: 64.00 | H65: =G65+2 -> 66.00 | I65: 68.00 | J65: 70.00
A66: 65.00 | B66: =A66+2 -> 67.00 | C66: 69.00 | D66: 71.00 | E66: 73.00 | F66: 75.00 | G66: 65.00 | H66: =G66+2 -> 67.00 | I66: 69.00 | J66: 71.00
A67: 66.00 | B67: =A67+2 -> 68.00 | C67: 70.00 | D67: 72.00 | E67: 74.00 | F67: 76.00 | G67: 66.00 | H67: =G67+2 -> 68.00 | I67: 70.00 | J67: 72.00
A68: 67.00 | B68: =A68+2 -> 69.00 | C68: 71.00 | D68: 73.00 | E68: 75.00 | F68: 77.00 | G68: 67.00 | H68: =G68+2 -> 69.00 | I68: 71.00 | J68: 73.00
A69: 68.00 | B69: =A69+2 -> 70.00 | C69: 72.00 | D69: 74.00 | E69: 76.00 | F69: 78.00 | G69: 68.00 | H69: =G69+2 -> 70.00 | I69: 72.00 | J69: 74.00
A70: 69.00 | B70: =A70+2 -> 71.00 | C70: 73.00 | D70: 75.00 | E70: 77.00 | F70: 79.00 | G70: 69.00 | H70: =G70+2 -> 71.00 | I70: 73.00 | J70: 75.00
A71: 70.00 | B71: =A71+2 -> 72.00 | C71: 74.00 | D71: 76.00 | E71: 78.00 | F71: 80.00 | G71: 70.00 | H71: =G71+2 -> 72.00 | I71: 74.00 | J71: 76.00
A72: 71.00 | B72: =A72+2 -> 73.00 | C72: 75.00 | D72: 77.00 | E72: 79.00 | F72: 81.00 | G72: 71.00 | H72: =G72+2 -> 73.00 | I72: 75.00 | J72: 77.00
A73: 72.00 | B73: =A73+2 -> 74.00 | C73: 76.00 | D73: 78.00 | E73: 80.00 | F73: 82.00 | G73: 72.00 | H73: =G73+2 -> 74.00 | I73: 76.00 | J73: 78.00
A74: 73.00 | B74: =A74+2 -> 75.00 | C74: 77.00 | D74: 79.00 | E74: 81.00 | F74: 83.00 | G74: 73.00 | H74: =G74+2 -> 75.00 | I74: 77.00 | J74: 79.00
A75: 74.00 | B75: =A75+2 -> 76.00 | C75: 78.00 | D75: 80.00 | E75: 82.00 | F75: 84.00 | G75: 74.00 | H75: =G75+2 -> 76.00 | I75: 78.00 | J75: 80.00
A76: 75.00 | B76: =A76+2 -> 77.00 | C76: 79.00 | D76: 81.00 | E76: 83.00 | F76: 85.00 | G76: 75.00 | H76: =G76+2 -> 77.00 | I76: 79.00 | J76: 81.00
A77: 76.00 | B77: =A77+2 -> 78.00 | C77: 80.00 | D77: 82.00 | E77: 84.00 | F77: 86.00 | G77: 76.00 | H77: =G77+2 -> 78.00 | I77: 80.00 | J77: 82.00
A78: 77.00 | B78: =A78+2 -> 79.00 | C78: 81.00 | D78: 83.00 | E78: 85.00 | F78: 87.00 | G78: 77.00 | H78: =G78+2 -> 79.00 | I78: 81.00 | J78: 83.00
A79: 78.00 | B79: =A79+2 -> 80.00 | C79: 82.00 | D79: 84.00 | E79: 86.00 | F79: 88.00 | G79: 78.00 | H79: =G79+2 -> 80.00 | I79: 82.00 | J79: 84.00
A80: 79.00 | B80: =A80+2 -> 81.00 | C80: 83.00 | D80: 85.00 | E80: 87.00 | F80: 89.00 | G80: 79.00 | H80: =G80+2 -> 81.00 | I80: 83.00 | J80: 85.00
A81: 80.00 | B81: =A81+2 -> 82.00 | C81: 84.00 | D81: 86.00 | E81: 88.00 | F81: 90.00 | G81: 80.00 | H81: =G81+2 -> 82.00 | I81: 84.00 | J81: 86.00
A82: 81.00 | B82: =A82+2 -> 83.00 | C82: 85.00 | D82: 87.00 | E82: 89.00 | F82: 91.00 | G82: 81.00 | H82: =G82+2 -> 83.00 | I82: 85.00 | J82: 87.00
A83: 82.00 | B83: =A83+2 -> 84.00 | C83: 86.00 | D83: 88.00 | E83: 90.00 | F83: 92.00 | G83: 82.00 | H83: =G83+2 -> 84.00 | I83: 86.00 | J83: 88.00
A84: 83.00 | B84: =A84+2 -> 85.00 | C84: 87.00 | D84: 89.00 | E84: 91.00 | F84: 93.00 | G84: 83.00 | H84: =G84+2 -> 85.00 | I84: 87.00 | J84: 89.00
A85: 84.00 | B85: =A85+2 -> 86.00 | C85: 88.00 | D85: 90.00 | E85: 92.00 | F85: 94.00 | G85: 84.00 | H85: =G85+2 -> 86.00 | I85: 88.00 | J85: 90.00
A86: 85.00 | B86: =A86+2 -> 87.00 | C86: 89.00 | D86: 91.00 | E86: 93.00 | F86: 95.00 | G86: 85.00 | H86: =G86+2 -> 87.00 | I86: 89.00 | J86: 91.00
A87: 86.00 | B87: =A87+2 -> 88.00 | C87: 90.00 | D87: 92.00 | E87: 94.00 | F87: 96.00 | G87: 86.00 | H87: =G87+2 -> 88.00 | I87: 90.00 | J87: 92.00
A88: 87.00 | B88: =A88+2 -> 89.00 | C88: 91.00 | D88: 93.00 | E88: 95.00 | F88: 97.00 | G88: 87.00 | H88: =G88+2 -> 89.00 | I88: 91.00 | J88: 93.00
A89: 88.00 | B89: =A89+2 -> 90.00 | C89: 92.00 | D89: 94.00 | E89: 96.00 | F89: 98.00 | G89: 88.00 | H89: =G89+2 -> 90.00 | I89: 92.00 | J89: 94.00
A90: 89.00 | B90: =A90+2 -> 91.00 | C90: 93.00 | D90: 95.00 | E90: 97.00 | F90: 99.00 | G90: 89.00 | H90: =G90+2 -> 91.00 | I90: 93.00 | J90: 95.00
A91: 90.00 | B91: =A91+2 -> 92.00 | C91: 94.00 | D91: 96.00 | E91: 98.00 | F91: 100.00 | G91: 90.00 | H91: =G91+2 -> 92.00 | I91: 94.00 | J91: 96.00
A92: 91.00 | B92: =A92+2 -> 93.00 | C92: 95.00 | D92: 97.00 | E92: 99.00 | F92: 101.00 | G92: 91.00 | H92: =G92+2 -> 93.00 | I92: 95.00 | J92: 97.00
A93: 92.00 | B93: =A93+2 -> 94.00 | C93: 96.00 | D93: 98.00 | E93: 100.00 | F93: 102.00 | G93: 92.00 | H93: =G93+2 -> 94.00 | I93: 96.00 | J93: 98.00
A94: 93.00 | B94: =A94+2 -> 95.00 | C94: 97.00 | D94: 99.00 | E94: 101.00 | F94: 103.00 | G94: 93.00 | H94: =G94+2 -> 95.00 | I94: 97.00 | J94: 99.00
A95: 94.00 | B95: =A95+2 -> 96.00 | C95: 98.00 | D95: 100.00 | E95: 102.00 | F95: 104.00 | G95: 94.00 | H95: =G95+2 -> 96.00 | I95: 98.00 | J95: 100.00
A96: 95.00 | B96: =A96+2 -> 97.00 | C96: 99.00 | D96: 101.00 | E96: 103.00 | F96: 105.00 | G96: 95.00 | H96: =G96+2 -> 97.00 | I96: 99.00 | J96: 101.00
A97: 96.00 | B97: =A97+2 -> 98.00 | C97: 100.00 | D97: 102.00 | E97: 104.00 | F97: 106.00 | G97: 96.00 | H97: =G97+2 -> 98.00 | I97: 100.00 | J97: 102.00
A98: 97.00 | B98: =A98+2 -> 99.00 | C98: 101.00 | D98: 103.00 | E98: 105.00 | F98: 107.00 | G98: 97.00 | H98: =G98+2 -> 99.00 | I98: 101.00 | J98: 103.00
A99: 98.00 | B99: =A99+2 -> 100.00 | C99: 102.00 | D99: 104.00 | E99: 106.00 | F99: 108.00 | G99: 98.00 | H99: =G99+2 -> 100.00 | I99: 102.00 | J99: 104.00
A100: 99.00 | B100: =A100+2 -> 101.00 | C100: 103.00 | D100: 105.00 | E100: 107.00 | F100: 109.00 | G100: 99.00 | H100: =G100+2 -> 101.00 | I100: 103.00 | J100: 105.00
A101: 100.00 | B101: =A101+2 -> 102.00 | C101: 104.00 | D101: 106.00 | E101: 108.00 | F101: 110.00 | G101: 100.00 | H101: =G101+2 -> 102.00 | I101: 104.00 | J101: 106.00
A102: 101.00 | B102: =A102+2 -> 103.00 | C102: 105.00 | D102: 107.00 | E102: 109.00 | F102: 111.00 | G102: 101.00 | H102: =G102+2 -> 103.00 | I102: 105.00 | J102: 107.00
A103: 102.00 | B103: =A103+2 -> 104.00 | C103: 106.00 | D103: 108.00 | E103: 110.00 | F103: 112.00 | G103: 102.00 | H103: =G103+2 -> 104.00 | I103: 106.00 | J103: 108.00
A104: 103.00 | B104: =A104+2 -> 105.00 | C104: 107.00 | D104: 109.00 | E104: 111.00 | F104: 113.00 | G104: 103.00 | H104: =G104+2 -> 105.00 | I104: 107.00 | J104: 109.00
A105: 104.00 | B105: =A105+2 -> 106.00 | C105: 108.00 | D105: 110.00 | E105: 112.00 | F105: 114.00 | G105: 104.00 | H105: =G105+2 -> 106.00 | I105: 108.00 | J105: 110.00
A106: 105.00 | B106: =A106+2 -> 107.00 | C106: 109.00 | D106: 111.00 | E106: 113.00 | F106: 115.00 | G106: 105.00 | H106: =G106+2 -> 107.00 | I106: 109.00 | J106: 111.00
A107: 106.00 | B107: =A107+2 -> 108.00 | C107: 110.00 | D107: 112.00 | E107: 114.00 | F107: 116.00 | G107: 106.00 | H107: =G107+2 -> 108.00 | I107: 110.00 | J107: 112.00
A108: 107.00 | B108: =A108+2 -> 109.00 | C108: 111.00 | D108: 113.00 | E108: 115.00 | F108: 117.00 | G108: 107.00 | H108: =G108+2 -> 109.00 | I108: 111.00 | J108: 113.00
A109: 108.00 | B109: =A109+2 -> 110.00 | C109: 112.00 | D109: 114.00 | E109: 116.00 | F109: 118.00 | G109: 108.00 | H109: =G109+2 -> 110.00 | I109: 112.00 | J109: 114.00
A110: 109.00 | B110: =A110+2 -> 111.00 | C110: 113.00 | D110: 115.00 | E110: 117.00 | F110: 119.00 | G110: 109.00 | H110: =G110+2 -> 111.00 | I110: 113.00 | J110: 115.00
A111: 110.00 | B111: =A111+2 -> 112.00 | C111: 114.00 | D111: 116.00 | E111: 118.00 | F111: 120.00 | G111: 110.00 | H111: =G111+2 -> 112.00 | I111: 114.00 | J111: 116.00
A112: 111.00 | B112: =A112+2 -> 113.00 | C112: 115.00 | D112: 117.00 | E112: 119.00 | F112: 121.00 | G112: 111.00 | H112: =G112+2 -> 113.00 | I112: 115.00 | J112: 117.00
A113: 112.00 | B113: =A113+2 -> 114.00 | C113: 116.00 | D113: 118.00 | E113: 120.00 | F113: 122.00 | G113: 112.00 | H113: =G113+2 -> 114.00 | I113: 116.00 | J113: 118.00
A114: 113.00 | B114: =A114+2 -> 115.00 | C114: 117.00 | D114: 119.00 | E114: 121.00 | F114: 123.00 | G114: 113.00 | H114: =G114+2 -> 115.00 | I114: 117.00 | J114: 119.00
A115: 114.00 | B115: =A115+2 -> 116.00 | C115: 118.00 | D115: 120.00 | E115: 122.00 | F115: 124.00 | G115: 114.00 | H115: =G115+2 -> 116.00 | I115: 118.00 | J115: 120.00
A116: 115.00 | B116: =A116+2 -> 117.00 | C116: 119.00 | D116: 121.00 | E116: 123.00 | F116: 125.00 | G116: 115.00 | H116: =G116+2 -> 117.00 | I116: 119.00 | J116: 121.00
A117: 116.00 | B117: =A117+2 -> 118.00 | C117: 120.00 | D117: 122.00 | E117: 124.00 | F117: 126.00 | G117: 116.00 | H117: =G117+2 -> 118.00 | I117: 120.00 | J117: 122.00
A118: 117.00 | B118: =A118+2 -> 119.00 | C118: 121.00 | D118: 123.00 | E118: 125.00 | F118: 127.00 | G118: 117.00 | H118: =G118+2 -> 119.00 | I118: 121.00 | J118: 123.00
A119: 118.00 | B119: =A119+2 -> 120.00 | C119: 122.00 | D119: 124.00 | E119: 126.00 | F119: 128.00 | G119: 118.00 | H119: =G119+2 -> 120.00 | I119: 122.00 | J119: 124.00
A120: 119.00 | B120: =A120+2 -> 121.00 | C120: 123.00 | D120: 125.00 | E120: 127.00 | F120: 129.00 | G120: 119.00 | H120: =G120+2 -> 121.00 | I120: 123.00 | J120: 125.00
A121: 120.00 | B121: =A121+2 -> 122.00 | C121: 124.00 | D121: 126.00 | E121: 128.00 | F121: 130.00 | G121: 120.00 | H121: =G121+2 -> 122.00 | I121: 124.00 | J121: 126.00
A122: 121.00 | B122: =A122+2 -> 123.00 | C122: 125.00 | D122: 127.00 | E122: 129.00 | F122: 131.00 | G122: 121.00 | H122: =G122+2 -> 123.00 | I122: 125.00 | J122: 127.00
A123: 122.00 | B123: =A123+2 -> 124.00 | C123: 126.00 | D123: 128.00 | E123: 130.00 | F123: 132.00 | G123: 122.00 | H123: =G123+2 -> 124.00 | I123: 126.00 | J123: 128.00
A124: 123.00 | B124: =A124+2 -> 125.00 | C124: 127.00 | D124: 129.00 | E124: 131.00 | F124: 133.00 | G124: 123.00 | H124: =G124+2 -> 125.00 | I124: 127.00 | J124: 129.00
A125: 124.00 | B125: =A125+2 -> 126.00 | C125: 128.00 | D125: 130.00 | E125: 132.00 | F125: 134.00 | G125: 124.00 | H125: =G125+2 -> 126.00 | I125: 128.00 | J125: 130.00
A126: 125.00 | B126: =A126+2 -> 127.00 | C126: 129.00 | D126: 131.00 | E126: 133.00 | F126: 135.00 | G126: 125.00 | H126: =G126+2 -> 127.00 | I126: 129.00 | J126: 131.00
A127: 126.00 | B127: =A127+2 -> 128.00 | C127: 130.00 | D127: 132.00 | E127: 134.00 | F127: 136.00 | G127: 126.00 | H127: =G127+2 -> 128.00 | I127: 130.00 | J127: 132.00
A128: 127.00 | B128: =A128+2 -> 129.00 | C128: 131.00 | D128: 133.00 | E128: 135.00 | F128: 137.00 | G128: 127.00 | H128: =G128+2 -> 129.00 | I128: 131.00 | J128: 133.00
A129: 128.00 | B129: =A129+2 -> 130.00 | C129: 132.00 | D129: 134.00 | E129: 136.00 | F129: 138.00 | G129: 128.00 | H129: =G129+2 -> 130.00 | I129: 132.00 | J129: 134.00
A130: 129.00 | B130: =A130+2 -> 131.00 | C130: 133.00 | D130: 135.00 | E130: 137.00 | F130: 139.00 | G130: 129.00 | H130: =G130+2 -> 131.00 | I130: 133.00 | J130: 135.00
A131: 130.00 | B131: =A131+2 -> 132.00 | C131: 134.00 | D131: 136.00 | E131: 138.00 | F131: 140.00 | G131: 130.00 | H131: =G131+2 -> 132.00 | I131: 134.00 | J131: 136.00
A132: 131.00 | B132: =A132+2 -> 133.00 | C132: 135.00 | D132: 137.00 | E132: 139.00 | F132: 141.00 | G132: 131.00 | H132: =G132+2 -> 133.00 | I132: 135.00 | J132: 137.00
A133: 132.00 | B133: =A133+2 -> 134.00 | C133: 136.00 | D133: 138.00 | E133: 140.00 | F133: 142.00 | G133: 132.00 | H133: =G133+2 -> 134.00 | I133: 136.00 | J133: 138.00
A134: 133.00 | B134: =A134+2 -> 135.00 | C134: 137.00 | D134: 139.00 | E134: 141.00 | F134: 143.00 | G134: 133.00 | H134: =G134+2 -> 135.00 | I134: 137.00 | J134: 139.00
A135: 134.00 | B135: =A135+2 -> 136.00 | C135: 138.00 | D135: 140.00 | E135: 142.00 | F135: 144.00 | G135: 134.00 | H135: =G135+2 -> 136.00 | I135: 138.00 | J135: 140.00
A136: 135.00 | B136: =A136+2 -> 137.00 | C136: 139.00 | D136: 141.00 | E136: 143.00 | F136: 145.00 | G136: 135.00 | H136: =G136+2 -> 137.00 | I136: 139.00 | J136: 141.00
A137: 136.00 | B137: =A137+2 -> 138.00 | C137: 140.00 | D137: 142.00 | E137: 144.00 | F137: 146.00 | G137: 136.00 | H137: =G137+2 -> 138.00 | I137: 140.00 | J137: 142.00
A138: 137.00 | B138: =A138+2 -> 139.00 | C138: 141.00 | D138: 143.00 | E138: 145.00 | F138: 147.00 | G138: 137.00 | H138: =G138+2 -> 139.00 | I138: 141.00 | J138: 143.00
A139: 138.00 | B139: =A139+2 -> 140.00 | C139: 142.00 | D139: 144.00 | E139: 146.00 | F139: 148.00 | G139: 138.00 | H139: =G139+2 -> 140.00 | I139: 142.00 | J139: 144.00
A140: 139.00 | B140: =A140+2 -> 141.00 | C140: 143.00 | D140: 145.00 | E140: 147.00 | F140: 149.00 | G140: 139.00 | H140: =G140+2 -> 141.00 | I140: 143.00 | J140: 145.00
A141: 140.00 | B141: =A141+2 -> 142.00 | C141: 144.00 | D141: 146.00 | E141: 148.00 | F141: 150.00 | G141: 140.00 | H141: =G141+2 -> 142.00 | I141: 144.00 | J141: 146.00
A142: 141.00 | B142: =A142+2 -> 143.00 | C142: 145.00 | D142: 147.00 | E142: 149.00 | F142: 151.00 | G142: 141.00 | H142: =G142+2 -> 143.00 | I142: 145.00 | J142: 147.00
A143: 142.00 | B143: =A143+2 -> 144.00 | C143: 146.00 | D143: 148.00 | E143: 150.00 | F143: 152.00 | G143: 142.00 | H143: =G143+2 -> 144.00 | I143: 146.00 | J143: 148.00
A144: 143.00 | B144: =A144+2 -> 145.00 | C144: 147.00 | D144: 149.00 | E144: 151.00 | F144: 153.00 | G144: 143.00 | H144: =G144+2 -> 145.00 | I144: 147.00 | J144: 149.00
A145: 144.00 | B145: =A145+2 -> 146.00 | C145: 148.00 | D145: 150.00 | E145: 152.00 | F145: 154.00 | G145: 144.00 | H145: =G145+2 -> 146.00 | I145: 148.00 | J145: 150.00
A146: 145.00 | B146: =A146+2 -> 147.00 | C146: 149.00 | D146: 151.00 | E146: 153.00 | F146: 155.00 | G146: 145.00 | H146: =G146+2 -> 147.00 | I146: 149.00 | J146: 151.00
A147: 146.00 | B147: =A147+2 -> 148.00 | C147: 150.00 | D147: 152.00 | E147: 154.00 | F147: 156.00 | G147: 146.00 | H147: =G147+2 -> 148.00 | I147: 150.00 | J147: 152.00
A148: 147.00 | B148: =A148+2 -> 149.00 | C148: 151.00 | D148: 153.00 | E148: 155.00 | F148: 157.00 | G148: 147.00 | H148: =G148+2 -> 149.00 | I148: 151.00 | J148: 153.00
A149: 148.00 | B149: =A149+2 -> 150.00 | C149: 152.00 | D149: 154.00 | E149: 156.00 | F149: 158.00 | G149: 148.00 | H149: =G149+2 -> 150.00 | I149: 152.00 | J149: 154.00
A150: 149.00 | B150: =A150+2 -> 151.00 | C150: 153.00 | D150: 155.00 | E150: 157.00 | F150: 159.00 | G150: 149.00 | H150: =G150+2 -> 151.00 | I150: 153.00 | J150: 155.00
A151: 150.00 | B151: =A151+2 -> 152.00 | C151: 154.00 | D151: 156.00 | E151: 158.00 | F151: 160.00 | G151: 150.00 | H151: =G151+2 -> 152.00 | I151: 154.00 | J151: 156.00
A152: 151.00 | B152: =A152+2 -> 153.00 | C152: 155.00 | D152: 157.00 | E152: 159.00 | F152: 161.00 | G152: 151.00 | H152: =G152+2 -> 153.00 | I152: 155.00 | J152: 157.00
A153: 152.00 | B153: =A153+2 -> 154.00 | C153: 156.00 | D153: 158.00 | E153: 160.00 | F153: 162.00 | G153: 152.00 | H153: =G153+2 -> 154.00 | I153: 156.00 | J153: 158.00
A154: 153.00 | B154: =A154+2 -> 155.00 | C154: 157.00 | D154: 159.00 | E154: 161.00 | F154: 163.00 | G154: 153.00 | H154: =G154+2 -> 155.00 | I154: 157.00 | J154: 159.00
A155: 154.00 | B155: =A155+2 -> 156.00 | C155: 158.00 | D155: 160.00 | E155: 162.00 | F155: 164.00 | G155: 154.00 | H155: =G155+2 -> 156.00 | I155: 158.00 | J155: 160.00
A156: 155.00 | B156: =A156+2 -> 157.00 | C156: 159.00 | D156: 161.00 | E156: 163.00 | F156: 165.00 | G156: 155.00 | H156: =G156+2 -> 157.00 | I156: 159.00 | J156: 161.00
A157: 156.00 | B157: =A157+2 -> 158.00 | C157: 160.00 | D157: 162.00 | E157: 164.00 | F157: 166.00 | G157: 156.00 | H157: =G157+2 -> 158.00 | I157: 160.00 | J157: 162.00
A158: 157.00 | B158: =A158+2 -> 159.00 | C158: 161.00 | D158: 163.00 | E158: 165.00 | F158: 167.00 | G158: 157.00 | H158: =G158+2 -> 159.00 | I158: 161.00 | J158: 163.00
A159: 158.00 | B159: =A159+2 -> 160.00 | C159: 162.00 | D159: 164.00 | E159: 166.00 | F159: 168.00 | G159: 158.00 | H159: =G159+2 -> 160.00 | I159: 162.00 | J159: 164.00
A160: 159.00 | B160: =A160+2 -> 161.00 | C160: 163.00 | D160: 165.00 | E160: 167.00 | F160: 169.00 | G160: 159.00 | H160: =G160+2 -> 161.00 | I160: 163.00 | J160: 165.00
A161: 160.00 | B161: =A161+2 -> 162.00 | C161: 164.00 | D161: 166.00 | E161: 168.00 | F161: 170.00 | G161: 160.00 | H161: =G161+2 -> 162.00 | I161: 164.00 | J161: 166.00
A162: 161.00 | B162: =A162+2 -> 163.00 | C162: 165.00 | D162: 167.00 | E162: 169.00 | F162: 171.00 | G162: 161.00 | H162: =G162+2 -> 163.00 | I162: 165.00 | J162: 167.00
A163: 162.00 | B163: =A163+2 -> 164.00 | C163: 166.00 | D163: 168.00 | E163: 170.00 | F163: 172.00 | G163: 162.00 | H163: =G163+2 -> 164.00 | I163: 166.00 | J163: 168.00
A164: 163.00 | B164: =A164+2 -> 165.00 | C164: 167.00 | D164: 169.00 | E164: 171.00 | F164: 173.00 | G164: 163.00 | H164: =G164+2 -> 165.00 | I164: 167.00 | J164: 169.00
A165: 164.00 | B165: =A165+2 -> 166.00 | C165: 168.00 | D165: 170.00 | E165: 172.00 | F165: 174.00 | G165: 164.00 | H165: =G165+2 -> 166.00 | I165: 168.00 | J165: 170.00
A166: 165.00 | B166: =A166+2 -> 167.00 | C166: 169.00 | D166: 171.00 | E166: 173.00 | F166: 175.00 | G166: 165.00 | H166: =G166+2 -> 167.00 | I166: 169.00 | J166: 171.00
A167: 166.00 | B167: =A167+2 -> 168.00 | C167: 170.00 | D167: 172.00 | E167: 174.00 | F167: 176.00 | G167: 166.00 | H167: =G167+2 -> 168.00 | I167: 170.00 | J167: 172.00
A168: 167.00 | B168: =A168+2 -> 169.00 | C168: 171.00 | D168: 173.00 | E168: 175.00 | F168: 177.00 | G168: 167.00 | H168: =G168+2 -> 169.00 | I168: 171.00 | J168: 173.00
A169: 168.00 | B169: =A169+2 -> 170.00 | C169: 172.00 | D169: 174.00 | E169: 176.00 | F169: 178.00 | G169: 168.00 | H169: =G169+2 -> 170.00 | I169: 172.00 | J169: 174.00
A170: 169.00 | B170: =A170+2 -> 171.00 | C170: 173.00 | D170: 175.00 | E170: 177.00 | F170: 179.00 | G170: 169.00 | H170: =G170+2 -> 171.00 | I170: 173.00 | J170: 175.00
A171: 170.00 | B171: =A171+2 -> 172.00 | C171: 174.00 | D171: 176.00 | E171: 178.00 | F171: 180.00 | G171: 170.00 | H171: =G171+2 -> 172.00 | I171: 174.00 | J171: 176.00
A172: 171.00 | B172: =A172+2 -> 173.00 | C172: 175.00 | D172: 177.00 | E172: 179.00 | F172: 181.00 | G172: 171.00 | H172: =G172+2 -> 173.00 | I172: 175.00 | J172: 177.00
A173: 172.00 | B173: =A173+2 -> 174.00 | C173: 176.00 | D173: 178.00 | E173: 180.00 | F173: 182.00 | G173: 172.00 | H173: =G173+2 -> 174.00 | I173: 176.00 | J173: 178.00
A174: 173.00 | B174: =A174+2 -> 175.00 | C174: 177.00 | D174: 179.00 | E174: 181.00 | F174: 183.00 | G174: 173.00 | H174: =G174+2 -> 175.00 | I174: 177.00 | J174: 179.00
A175: 174.00 | B175: =A175+2 -> 176.00 | C175: 178.00 | D175: 180.00 | E175: 182.00 | F175: 184.00 | G175: 174.00 | H175: =G175+2 -> 176.00 | I175: 178.00 | J175: 180.00
A176: 175.00 | B176: =A176+2 -> 177.00 | C176: 179.00 | D176: 181.00 | E176: 183.00 | F176: 185.00 | G176: 175.00 | H176: =G176+2 -> 177.00 | I176: 179.00 | J176: 181.00
A177: 176.00 | B177: =A177+2 -> 178.00 | C177: 180.00 | D177: 182.00 | E177: 184.00 | F177: 186.00 | G177: 176.00 | H177: =G177+2 -> 178.00 | I177: 180.00 | J177: 182.00
A178: 177.00 | B178: =A178+2 -> 179.00 | C178: 181.00 | D178: 183.00 | E178: 185.00 | F178: 187.00 | G178: 177.00 | H178: =G178+2 -> 179.00 | I178: 181.00 | J178: 183.00
A179: 178.00 | B179: =A179+2 -> 180.00 | C179: 182.00 | D179: 184.00 | E179: 186.00 | F179: 188.00 | G179: 178.00 | H179: =G179+2 -> 180.00 | I179: 182.00 | J179: 184.00
A180: 179.00 | B180: =A180+2 -> 181.00 | C180: 183.00 | D180: 185.00 | E180: 187.00 | F180: 189.00 | G180: 179.00 | H180: =G180+2 -> 181.00 | I180: 183.00 | J180: 185.00
A181: 180.00 | B181: =A181+2 -> 182.00 | C181: 184.00 | D181: 186.00 | E181: 188.00 | F181: 190.00 | G181: 180.00 | H181: =G181+2 -> 182.00 | I181: 184.00 | J181: 186.00
A182: 181.00 | B182: =A182+2 -> 183.00 | C182: 185.00 | D182: 187.00 | E182: 189.00 | F182: 191.00 | G182: 181.00 | H182: =G182+2 -> 183.00 | I182: 185.00 | J182: 187.00
A183: 182.00 | B183: =A183+2 -> 184.00 | C183: 186.00 | D183: 188.00 | E183: 190.00 | F183: 192.00 | G183: 182.00 | H183: =G183+2 -> 184.00 | I183: 186.00 | J183: 188.00
A184: 183.00 | B184: =A184+2 -> 185.00 | C184: 187.00 | D184: 189.00 | E184: 191.00 | F184: 193.00 | G184: 183.00 | H184: =G184+2 -> 185.00 | I184: 187.00 | J184: 189.00
A185: 184.00 | B185: =A185+2 -> 186.00 | C185: 188.00 | D185: 190.00 | E185: 192.00 | F185: 194.00 | G185: 184.00 | H185: =G185+2 -> 186.00 | I185: 188.00 | J185: 190.00
A186: 185.00 | B186: =A186+2 -> 187.00 | C186: 189.00 | D186: 191.00 | E186: 193.00 | F186: 195.00 | G186: 185.00 | H186: =G186+2 -> 187.00 | I186: 189.00 | J186: 191.00
A187: 186.00 | B187: =A187+2 -> 188.00 | C187: 190.00 | D187: 192.00 | E187: 194.00 | F187: 196.00 | G187: 186.00 | H187: =G187+2 -> 188.00 | I187: 190.00 | J187: 192.00
A188: 187.00 | B188: =A188+2 -> 189.00 | C188: 191.00 | D188: 193.00 | E188: 195.00 | F188: 197.00 | G188: 187.00 | H188: =G188+2 -> 189.00 | I188: 191.00 | J188: 193.00
A189: 188.00 | B189: =A189+2 -> 190.00 | C189: 192.00 | D189: 194.00 | E189: 196.00 | F189: 198.00 | G189: 188.00 | H189: =G189+2 -> 190.00 | I189: 192.00 | J189: 194.00
A190: 189.00 | B190: =A190+2 -> 191.00 | C190: 193.00 | D190: 195.00 | E190: 197.00 | F190: 199.00 | G190: 189.00 | H190: =G190+2 -> 191.00 | I190: 193.00 | J190: 195.00
A191: 190.00 | B191: =A191+2 -> 192.00 | C191: 194.00 | D191: 196.00 | E191: 198.00 | F191: 200.00 | G191: 190.00 | H191: =G191+2 -> 192.00 | I191: 194.00 | J191: 196.00
A192: 191.00 | B192: =A192+2 -> 193.00 | C192: 195.00 | D192: 197.00 | E192: 199.00 | F192: 201.00 | G192: 191.00 | H192: =G192+2 -> 193.00 | I192: 195.00 | J192: 197.00
A193: 192.00 | B193: =A193+2 -> 194.00 | C193: 196.00 | D193: 198.00 | E193: 200.00 | F193: 202.00 | G193: 192.00 | H193: =G193+2 -> 194.00 | I193: 196.00 | J193: 198.00
A194: 193.00 | B194: =A194+2 -> 195.00 | C194: 197.00 | D194: 199.00 | E194: 201.00 | F194: 203.00 | G194: 193.00 | H194: =G194+2 -> 195.00 | I194: 197.00 | J194: 199.00
A195: 194.00 | B195: =A195+2 -> 196.00 | C195: 198.00 | D195: 200.00 | E195: 202.00 | F195: 204.00 | G195: 194.00 | H195: =G195+2 -> 196.00 | I195: 198.00 | J195: 200.00
A196: 195.00 | B196: =A196+2 -> 197.00 | C196: 199.00 | D196: 201.00 | E196: 203.00 | F196: 205.00 | G196: 195.00 | H196: =G196+2 -> 197.00 | I196: 199.00 | J196: 201.00
A197: 196.00 | B197: =A197+2 -> 198.00 | C197: 200.00 | D197: 202.00 | E197: 204.00 | F197: 206.00 | G197: 196.00 | H197: =G197+2 -> 198.00 | I197: 200.00 | J197: 202.00
A198: 197.00 | B198: =A198+2 -> 199.00 | C198: 201.00 | D198: 203.00 | E198: 205.00 | F198: 207.00 | G198: 197.00 | H198: =G198+2 -> 199.00 | I198: 201.00 | J198: 203.00
A199: 198.00 | B199: =A199+2 -> 200.00 | C199: 202.00 | D199: 204.00 | E199: 206.00 | F199: 208.00 | G199: 198.00 | H199: =G199+2 -> 200.00 | I199: 202.00 | J199: 204.00
A200: 199.00 | B200: =A200+2 -> 201.00 | C200: 203.00 | D200: 205.00 | E200: 207.00 | F200: 209.00 | G200: 199.00 | H200: =G200+2 -> 201.00 | I200: 203.00 | J200: 205.00
... 4800 more rows

Sheet Feuil2

Sheet Feuil3
